[Event "*** Titled Tuesday Blitz"]
[Site "Chess.com"]
[Date "2021.03.30"]
[Round "2"]
[White "Redzishchess"]
[Black "Flutaga"]
[Result "1-0"]
[WhiteElo "2383"]
[BlackElo "2003"]
[TimeControl "180+1"]
[EndTime "10:17:14 PDT"]
[Termination "Redzishchess won by resignation"]

1. e4 {[%clk 0:03:00.9]} 1... e5 {[%clk 0:03:00.2]} 2. Nc3 {[%clk 0:03:00.8]}
2... Nc6 {[%clk 0:03:00.3]} 3. g3 {[%clk 0:03:00.8]} 3... Nf6 {[%clk 0:02:59.8]}
4. Bg2 {[%clk 0:03:01]} 4... d6 {[%clk 0:02:59.5]} 5. d3 {[%clk 0:02:55.9]} 5...
Bg4 {[%clk 0:02:59.1]} 6. Nge2 {[%clk 0:02:55]} 6... Be7 {[%clk 0:02:58.8]} 7.
h3 {[%clk 0:02:54.6]} 7... Bh5 {[%clk 0:02:58]} 8. g4 {[%clk 0:02:54.1]} 8...
Bg6 {[%clk 0:02:56.9]} 9. Be3 {[%clk 0:02:53.7]} 9... Qd7 {[%clk 0:02:53.7]} 10.
Qd2 {[%clk 0:02:53.7]} 10... O-O-O {[%clk 0:02:53]} 11. O-O-O {[%clk 0:02:53.8]}
11... Kb8 {[%clk 0:02:47.2]} 12. f4 {[%clk 0:02:52.1]} 12... exf4 {[%clk
0:02:44.6]} 13. Nxf4 {[%clk 0:02:53]} 13... Ne5 {[%clk 0:02:42.4]} 14. Kb1
{[%clk 0:02:38.5]} 14... Rhe8 {[%clk 0:02:25.7]} 15. Qf2 {[%clk 0:02:32.8]}
15... a6 {[%clk 0:02:07.5]} 16. Rhf1 {[%clk 0:02:32]} 16... Bf8 {[%clk
0:01:30.6]} 17. g5 {[%clk 0:01:52.2]} 17... Nh5 {[%clk 0:00:57.1]} 18. Nfd5
{[%clk 0:01:51.8]} 18... Nc6 {[%clk 0:00:28.3]} 19. Bf3 {[%clk 0:01:27.6]} 19...
Be7 {[%clk 0:00:20.2]} 20. Bg4 {[%clk 0:01:19.1]} 20... f5 {[%clk 0:00:09.3]}
21. gxf6 {[%clk 0:01:17.2]} 21... Bxf6 {[%clk 0:00:09.5]} 22. Bxd7 {[%clk
0:01:16.3]} 22... Rxd7 {[%clk 0:00:10.4]} 23. Nxf6 {[%clk 0:01:10.5]} 23... Nxf6
{[%clk 0:00:11.3]} 24. Qg3 {[%clk 0:00:57.4]} 24... Ne5 {[%clk 0:00:09.6]} 25.
Bd4 {[%clk 0:00:49.8]} 25... Rde7 {[%clk 0:00:08.4]} 26. Ne2 {[%clk 0:00:36.4]}
26... Nfd7 {[%clk 0:00:07.5]} 27. Nf4 {[%clk 0:00:35.3]} 27... Bf7 {[%clk
0:00:07.5]} 28. Rf2 {[%clk 0:00:28.9]} 28... Bg8 {[%clk 0:00:05.2]} 29. Rdf1
{[%clk 0:00:28.7]} 29... c5 {[%clk 0:00:02.8]} 30. Bc3 {[%clk 0:00:27.5]} 30...
b6 {[%clk 0:00:01.8]} 31. Nh5 {[%clk 0:00:21]} 31... Kb7 {[%clk 0:00:01.9]} 32.
Nxg7 {[%clk 0:00:20.1]} 32... Rd8 {[%clk 0:00:01.3]} 33. Nf5 {[%clk 0:00:19.3]}
33... Rf7 {[%clk 0:00:01.3]} 34. Nxd6+ {[%clk 0:00:19.4]} 34... Kc6 {[%clk
0:00:02.2]} 1-0

[Event "*** Titled Tuesday Blitz"]
[Site "Chess.com"]
[Date "2021.03.30"]
[Round "2"]
[White "adricalderon8"]
[Black "moro182"]
[Result "0-1"]
[WhiteElo "2499"]
[BlackElo "2725"]
[TimeControl "180+1"]
[EndTime "10:17:15 PDT"]
[Termination "moro182 won by resignation"]

1. Nf3 {[%clk 0:03:00.9]} 1... g6 {[%clk 0:02:58.9]} 2. e4 {[%clk 0:02:59.4]}
2... Bg7 {[%clk 0:02:59.8]} 3. d4 {[%clk 0:02:59.1]} 3... d6 {[%clk 0:03:00.2]}
4. h3 {[%clk 0:02:58.7]} 4... Nf6 {[%clk 0:02:58.4]} 5. Bd3 {[%clk 0:02:57.6]}
5... O-O {[%clk 0:02:57.6]} 6. c3 {[%clk 0:02:57.1]} 6... e5 {[%clk 0:02:50.1]}
7. O-O {[%clk 0:02:56.3]} 7... Re8 {[%clk 0:02:46.5]} 8. Re1 {[%clk 0:02:56.1]}
8... Nc6 {[%clk 0:02:45.7]} 9. d5 {[%clk 0:02:55.2]} 9... Ne7 {[%clk 0:02:45.1]}
10. c4 {[%clk 0:02:55.5]} 10... Nd7 {[%clk 0:02:41.2]} 11. Nc3 {[%clk
0:02:55.5]} 11... h6 {[%clk 0:02:39]} 12. Bc2 {[%clk 0:02:54.4]} 12... Rf8
{[%clk 0:02:35.9]} 13. b4 {[%clk 0:02:53.8]} 13... a5 {[%clk 0:02:34.5]} 14. Rb1
{[%clk 0:02:52.4]} 14... axb4 {[%clk 0:02:33.6]} 15. Rxb4 {[%clk 0:02:53.3]}
15... Nc5 {[%clk 0:02:31.3]} 16. Be3 {[%clk 0:02:52.1]} 16... b6 {[%clk
0:02:28.2]} 17. a4 {[%clk 0:02:48.1]} 17... f5 {[%clk 0:02:27.3]} 18. exf5
{[%clk 0:02:37.7]} 18... Nxf5 {[%clk 0:02:11.7]} 19. Bxc5 {[%clk 0:02:32.8]}
19... bxc5 {[%clk 0:02:10.7]} 20. Rb1 {[%clk 0:02:30.3]} 20... Bd7 {[%clk
0:02:10.8]} 21. Nb5 {[%clk 0:02:25.3]} 21... Rf7 {[%clk 0:01:39.8]} 22. Re2
{[%clk 0:02:21.5]} 22... Bc8 {[%clk 0:01:34.1]} 23. Be4 {[%clk 0:02:15.9]} 23...
Qf6 {[%clk 0:01:32.5]} 24. Ra2 {[%clk 0:02:13.3]} 24... Nd4 {[%clk 0:01:25.6]}
25. Nfxd4 {[%clk 0:02:12.9]} 25... exd4 {[%clk 0:01:26.3]} 26. Qd3 {[%clk
0:02:12.7]} 26... Kh7 {[%clk 0:01:15]} 27. a5 {[%clk 0:02:04.6]} 27... Qg5
{[%clk 0:01:13.1]} 28. Kh1 {[%clk 0:02:01.9]} 28... Be5 {[%clk 0:01:10.8]} 29.
Rba1 {[%clk 0:01:39]} 29... Kg7 {[%clk 0:01:05.3]} 30. a6 {[%clk 0:01:37.7]}
30... Rxa6 {[%clk 0:01:04.8]} 31. Rxa6 {[%clk 0:01:15.4]} 31... Bxa6 {[%clk
0:01:05.7]} 32. f4 {[%clk 0:01:14.8]} 32... Qxf4 {[%clk 0:00:49.7]} 33. g3
{[%clk 0:01:14.7]} 33... Qf2 {[%clk 0:00:46.3]} 34. Rxa6 {[%clk 0:01:09]} 34...
Bxg3 {[%clk 0:00:35.8]} 35. Ra2 {[%clk 0:00:29.4]} 35... Qxa2 {[%clk 0:00:30.8]}
36. Qc2 {[%clk 0:00:25.8]} 36... Rf1+ {[%clk 0:00:29.5]} 37. Kg2 {[%clk
0:00:25.9]} 37... Rf2+ {[%clk 0:00:29.4]} 38. Kxg3 {[%clk 0:00:26]} 38... Rxc2
{[%clk 0:00:27.9]} 39. Nxc7 {[%clk 0:00:26.9]} 39... Rc3+ {[%clk 0:00:26.6]} 40.
Kf4 {[%clk 0:00:27]} 40... Qf2+ {[%clk 0:00:25.5]} 41. Kg4 {[%clk 0:00:27.3]}
41... h5+ {[%clk 0:00:24.9]} 0-1

[Event "*** Titled Tuesday Blitz"]
[Site "Chess.com"]
[Date "2021.03.30"]
[Round "2"]
[White "KroshkaKami"]
[Black "morte-negra"]
[Result "1-0"]
[WhiteElo "2371"]
[BlackElo "1883"]
[TimeControl "180+1"]
[EndTime "10:17:15 PDT"]
[Termination "KroshkaKami won on time"]

1. e4 {[%clk 0:03:00.9]} 1... c5 {[%clk 0:02:59.4]} 2. d4 {[%clk 0:02:56.9]}
2... cxd4 {[%clk 0:02:57.9]} 3. c3 {[%clk 0:02:56.2]} 3... Nf6 {[%clk
0:02:58.1]} 4. e5 {[%clk 0:02:56]} 4... Nd5 {[%clk 0:02:58.3]} 5. cxd4 {[%clk
0:02:55.9]} 5... d6 {[%clk 0:02:58.7]} 6. Nf3 {[%clk 0:02:56.3]} 6... e6 {[%clk
0:02:55.9]} 7. Bc4 {[%clk 0:02:56.4]} 7... Nb6 {[%clk 0:02:54.6]} 8. Bb3 {[%clk
0:02:54.8]} 8... Nc6 {[%clk 0:02:51.7]} 9. Qe2 {[%clk 0:02:44.5]} 9... Qc7
{[%clk 0:02:47.4]} 10. O-O {[%clk 0:02:44]} 10... Be7 {[%clk 0:02:38.6]} 11. Bf4
{[%clk 0:02:38.2]} 11... a5 {[%clk 0:02:34.3]} 12. Nc3 {[%clk 0:02:27.7]} 12...
a4 {[%clk 0:02:33.5]} 13. exd6 {[%clk 0:02:00.4]} 13... Bxd6 {[%clk 0:02:30]}
14. Nb5 {[%clk 0:01:59.1]} 14... Bxf4 {[%clk 0:02:02.7]} 15. Nxc7+ {[%clk
0:01:58.3]} 15... Bxc7 {[%clk 0:02:02.3]} 16. d5 {[%clk 0:01:45.7]} 16... axb3
{[%clk 0:01:56.9]} 17. dxc6 {[%clk 0:01:45.1]} 17... bxa2 {[%clk 0:01:54.9]} 18.
Qe4 {[%clk 0:01:41.5]} 18... Nd5 {[%clk 0:01:50.7]} 19. Rfd1 {[%clk 0:01:31.9]}
19... bxc6 {[%clk 0:01:48.3]} 20. Nd4 {[%clk 0:01:29.1]} 20... Bd7 {[%clk
0:01:34.9]} 21. Nb3 {[%clk 0:01:13.1]} 21... Bb6 {[%clk 0:01:05.5]} 22. Nc1
{[%clk 0:01:07.1]} 22... O-O {[%clk 0:00:37.4]} 23. Nxa2 {[%clk 0:01:06.7]}
23... c5 {[%clk 0:00:29.8]} 24. b4 {[%clk 0:01:02.1]} 24... Bc6 {[%clk
0:00:17.9]} 25. Qc4 {[%clk 0:01:01.7]} 25... Ra4 {[%clk 0:00:11.9]} 26. Qc2
{[%clk 0:00:48.6]} 26... Rfa8 {[%clk 0:00:10.5]} 27. bxc5 {[%clk 0:00:39.5]}
27... Bc7 {[%clk 0:00:09.6]} 28. Qb2 {[%clk 0:00:31.2]} 28... f6 {[%clk
0:00:07.7]} 29. Rdb1 {[%clk 0:00:28.5]} 29... Be5 {[%clk 0:00:07.3]} 30. Qd2
{[%clk 0:00:24.7]} 30... Bxa1 {[%clk 0:00:06.6]} 31. Rxa1 {[%clk 0:00:25.6]}
31... Nb4 {[%clk 0:00:04.8]} 32. Qd6 {[%clk 0:00:24]} 32... Nxa2 {[%clk
0:00:03.4]} 33. Qxe6+ {[%clk 0:00:23.9]} 33... Kh8 {[%clk 0:00:02.6]} 34. Qxc6
{[%clk 0:00:23.6]} 1-0

[Event "*** Titled Tuesday Blitz"]
[Site "Chess.com"]
[Date "2021.03.30"]
[Round "2"]
[White "Supernotar"]
[Black "ajdemipopushi"]
[Result "1-0"]
[WhiteElo "2704"]
[BlackElo "2347"]
[TimeControl "180+1"]
[EndTime "10:17:16 PDT"]
[Termination "Supernotar won on time"]

1. d4 {[%clk 0:03:00.9]} 1... Nf6 {[%clk 0:02:59.5]} 2. c4 {[%clk 0:03:01.2]}
2... c5 {[%clk 0:02:59.8]} 3. d5 {[%clk 0:03:01.2]} 3... b5 {[%clk 0:03:00.2]}
4. Nf3 {[%clk 0:03:01.6]} 4... g6 {[%clk 0:03:00.1]} 5. a4 {[%clk 0:03:00.5]}
5... b4 {[%clk 0:03:00.1]} 6. b3 {[%clk 0:03:00.7]} 6... Bg7 {[%clk 0:03:00.4]}
7. Bb2 {[%clk 0:03:01.3]} 7... O-O {[%clk 0:03:00.5]} 8. Nbd2 {[%clk 0:03:01.8]}
8... e6 {[%clk 0:02:59.6]} 9. e4 {[%clk 0:03:00.9]} 9... exd5 {[%clk 0:02:59.6]}
10. exd5 {[%clk 0:03:01.8]} 10... Re8+ {[%clk 0:02:54.2]} 11. Be2 {[%clk
0:03:02.2]} 11... Qe7 {[%clk 0:02:50.4]} 12. Nf1 {[%clk 0:02:53.7]} 12... d6
{[%clk 0:02:41.7]} 13. Ng3 {[%clk 0:02:53.5]} 13... Ne4 {[%clk 0:02:36.4]} 14.
Bxg7 {[%clk 0:02:49.4]} 14... Kxg7 {[%clk 0:02:20.2]} 15. Nxe4 {[%clk
0:02:48.7]} 15... Qxe4 {[%clk 0:02:19.3]} 16. Ra2 {[%clk 0:02:48.6]} 16... Bg4
{[%clk 0:02:05.4]} 17. O-O {[%clk 0:02:48.1]} 17... Nd7 {[%clk 0:01:52]} 18. h3
{[%clk 0:02:47.5]} 18... Bxf3 {[%clk 0:01:47]} 19. Bxf3 {[%clk 0:02:48.4]} 19...
Qe5 {[%clk 0:01:44.8]} 20. Qd3 {[%clk 0:02:41.3]} 20... Qf6 {[%clk 0:01:41.7]}
21. Qc2 {[%clk 0:02:32.3]} 21... Re7 {[%clk 0:01:35.6]} 22. Raa1 {[%clk
0:02:31.3]} 22... Rae8 {[%clk 0:01:34.5]} 23. Rac1 {[%clk 0:02:28.2]} 23... a5
{[%clk 0:01:33.8]} 24. Qd2 {[%clk 0:02:24.4]} 24... h5 {[%clk 0:01:33.3]} 25.
Rfe1 {[%clk 0:02:23.3]} 25... Ne5 {[%clk 0:01:32]} 26. Be2 {[%clk 0:02:21]}
26... Qf5 {[%clk 0:01:07.7]} 27. Kf1 {[%clk 0:02:07.1]} 27... Qf6 {[%clk
0:00:45.2]} 28. Kg1 {[%clk 0:02:05.2]} 28... Qh4 {[%clk 0:00:43.2]} 29. Kf1
{[%clk 0:01:54.7]} 29... f5 {[%clk 0:00:40.4]} 30. f4 {[%clk 0:01:51.6]} 30...
Nd7 {[%clk 0:00:37.6]} 31. Bf3 {[%clk 0:01:47.1]} 31... Nf6 {[%clk 0:00:34.7]}
32. Rxe7+ {[%clk 0:01:44.4]} 32... Rxe7 {[%clk 0:00:34.7]} 33. Re1 {[%clk
0:01:41.6]} 33... Rxe1+ {[%clk 0:00:26.1]} 34. Qxe1 {[%clk 0:01:42.5]} 34...
Qxe1+ {[%clk 0:00:23.4]} 35. Kxe1 {[%clk 0:01:43.4]} 35... h4 {[%clk 0:00:23.7]}
36. Kf2 {[%clk 0:01:41.6]} 36... Kh6 {[%clk 0:00:23.1]} 37. Ke3 {[%clk
0:01:40.7]} 37... g5 {[%clk 0:00:21.9]} 38. Be2 {[%clk 0:01:34.2]} 38... Kg6
{[%clk 0:00:20.8]} 39. Bd3 {[%clk 0:01:31.3]} 39... Nh5 {[%clk 0:00:20.3]} 40.
fxg5 {[%clk 0:01:28.9]} 40... Kxg5 {[%clk 0:00:20.8]} 41. Kf3 {[%clk 0:01:26.2]}
41... Ng7 {[%clk 0:00:18.6]} 42. g3 {[%clk 0:01:21.9]} 42... hxg3 {[%clk
0:00:18.1]} 43. Kxg3 {[%clk 0:01:22.8]} 43... Nh5+ {[%clk 0:00:16.9]} 44. Kf3
{[%clk 0:01:23.1]} 44... Nf6 {[%clk 0:00:16.8]} 45. Bc2 {[%clk 0:01:16.5]} 45...
Nd7 {[%clk 0:00:16.5]} 46. h4+ {[%clk 0:01:13.5]} 46... Kxh4 {[%clk 0:00:12.8]}
47. Kf4 {[%clk 0:01:13.9]} 47... Ne5 {[%clk 0:00:11.6]} 48. Kxf5 {[%clk
0:01:13.7]} 48... Kg3 {[%clk 0:00:03.7]} 49. Ke6 {[%clk 0:01:14]} 49... Kf3
{[%clk 0:00:03.5]} 50. Kxd6 {[%clk 0:01:14.5]} 50... Kf4 {[%clk 0:00:02.5]} 51.
Kxc5 {[%clk 0:01:14.4]} 51... Ke3 {[%clk 0:00:01.7]} 52. d6 {[%clk 0:01:13.3]}
52... Kd2 {[%clk 0:00:01.7]} 53. Kd5 {[%clk 0:01:11.4]} 53... Nd7 {[%clk
0:00:01.1]} 54. Bf5 {[%clk 0:01:11.3]} 1-0

[Event "*** Titled Tuesday Blitz"]
[Site "Chess.com"]
[Date "2021.03.30"]
[Round "2"]
[White "Tactictic"]
[Black "AthanasiusLefebvre"]
[Result "1-0"]
[WhiteElo "2387"]
[BlackElo "2014"]
[TimeControl "180+1"]
[EndTime "10:17:16 PDT"]
[Termination "Tactictic won by resignation"]

1. e4 {[%clk 0:03:00.9]} 1... c5 {[%clk 0:02:59]} 2. Nf3 {[%clk 0:03:00]} 2...
e6 {[%clk 0:02:58.9]} 3. d4 {[%clk 0:02:59.7]} 3... cxd4 {[%clk 0:02:58.9]} 4.
Nxd4 {[%clk 0:02:47.1]} 4... a6 {[%clk 0:02:57.9]} 5. Bd3 {[%clk 0:02:27.2]}
5... Qc7 {[%clk 0:02:57.5]} 6. O-O {[%clk 0:02:14.5]} 6... b5 {[%clk 0:02:57]}
7. a4 {[%clk 0:02:09.9]} 7... b4 {[%clk 0:02:56.3]} 8. a5 {[%clk 0:02:07.7]}
8... Bb7 {[%clk 0:02:56.1]} 9. Nd2 {[%clk 0:02:02.6]} 9... Nf6 {[%clk
0:02:55.3]} 10. Qe2 {[%clk 0:01:59.6]} 10... Bd6 {[%clk 0:02:52.4]} 11. h3
{[%clk 0:01:51.1]} 11... Nc6 {[%clk 0:02:48.9]} 12. Nxc6 {[%clk 0:01:48.6]}
12... Bxc6 {[%clk 0:02:48.1]} 13. Nc4 {[%clk 0:01:47.6]} 13... Bc5 {[%clk
0:02:42.9]} 14. Be3 {[%clk 0:01:30.1]} 14... Bxe3 {[%clk 0:02:03]} 15. Qxe3
{[%clk 0:01:31]} 15... d5 {[%clk 0:02:03]} 16. Nb6 {[%clk 0:01:20]} 16... Ra7
{[%clk 0:02:01.9]} 17. exd5 {[%clk 0:01:16.8]} 17... Nxd5 {[%clk 0:02:01.7]} 18.
Nxd5 {[%clk 0:01:15.1]} 18... Bxd5 {[%clk 0:02:01.5]} 19. Qd4 {[%clk 0:01:11.4]}
19... O-O {[%clk 0:01:55.9]} 20. Qxb4 {[%clk 0:01:10.8]} 20... Rb7 {[%clk
0:01:52.6]} 21. Qh4 {[%clk 0:01:10.1]} 21... g6 {[%clk 0:01:50.7]} 22. b4 {[%clk
0:01:09.5]} 22... Qc6 {[%clk 0:01:42]} 23. f3 {[%clk 0:00:58.3]} 23... Qc3
{[%clk 0:01:34.1]} 24. Rab1 {[%clk 0:00:54.6]} 24... Rfb8 {[%clk 0:01:26.7]} 25.
b5 {[%clk 0:00:49.5]} 25... axb5 {[%clk 0:01:24.8]} 26. a6 {[%clk 0:00:48.7]}
26... Qc5+ {[%clk 0:01:06.1]} 27. Qf2 {[%clk 0:00:47.9]} 27... Qxf2+ {[%clk
0:00:57.2]} 28. Kxf2 {[%clk 0:00:46.1]} 28... Rb6 {[%clk 0:00:57.5]} 29. c4
{[%clk 0:00:21.7]} 29... bxc4 {[%clk 0:00:52.7]} 30. a7 {[%clk 0:00:17.9]} 30...
Rxb1 {[%clk 0:00:41.7]} 31. Rxb1 {[%clk 0:00:18.8]} 31... Rxb1 {[%clk
0:00:35.6]} 32. Bxb1 {[%clk 0:00:19.7]} 32... Kf8 {[%clk 0:00:33.7]} 33. Be4
{[%clk 0:00:18.7]} 33... Bxe4 {[%clk 0:00:05.9]} 34. fxe4 {[%clk 0:00:19.6]} 1-0

[Event "*** Titled Tuesday Blitz"]
[Site "Chess.com"]
[Date "2021.03.30"]
[Round "2"]
[White "chessdjw"]
[Black "Deepweb2020"]
[Result "1-0"]
[WhiteElo "2771"]
[BlackElo "2519"]
[TimeControl "180+1"]
[EndTime "10:17:19 PDT"]
[Termination "chessdjw won by checkmate"]

1. e4 {[%clk 0:03:00.9]} 1... e5 {[%clk 0:02:57.9]} 2. Nf3 {[%clk 0:03:00.4]}
2... Nc6 {[%clk 0:02:58.3]} 3. Bb5 {[%clk 0:03:00.4]} 3... a6 {[%clk 0:02:58.6]}
4. Ba4 {[%clk 0:03:00.9]} 4... Nf6 {[%clk 0:02:58.5]} 5. O-O {[%clk 0:03:00.5]}
5... b5 {[%clk 0:02:59.1]} 6. Bb3 {[%clk 0:03:00.4]} 6... Bc5 {[%clk 0:02:58.9]}
7. a4 {[%clk 0:02:57.4]} 7... Rb8 {[%clk 0:02:58.6]} 8. c3 {[%clk 0:02:51.9]}
8... d6 {[%clk 0:02:57.5]} 9. d4 {[%clk 0:02:51.9]} 9... Bb6 {[%clk 0:02:57.8]}
10. axb5 {[%clk 0:02:45]} 10... axb5 {[%clk 0:02:57.5]} 11. Na3 {[%clk
0:02:41.5]} 11... O-O {[%clk 0:02:57.5]} 12. Nxb5 {[%clk 0:02:41.8]} 12... Bg4
{[%clk 0:02:57.3]} 13. Bc2 {[%clk 0:02:40.6]} 13... Bxf3 {[%clk 0:02:54.9]} 14.
gxf3 {[%clk 0:02:40.4]} 14... Nh5 {[%clk 0:02:41.8]} 15. f4 {[%clk 0:02:33.1]}
15... Nxf4 {[%clk 0:02:12.1]} 16. Bxf4 {[%clk 0:02:31.4]} 16... exf4 {[%clk
0:02:12.5]} 17. Qg4 {[%clk 0:02:31.7]} 17... Qf6 {[%clk 0:02:00.4]} 18. Kh1
{[%clk 0:02:22.3]} 18... Ne7 {[%clk 0:01:42.6]} 19. b4 {[%clk 0:02:11.5]} 19...
Ng6 {[%clk 0:01:34.5]} 20. Na3 {[%clk 0:02:06.5]} 20... c5 {[%clk 0:01:19.4]}
21. e5 {[%clk 0:01:50]} 21... Qd8 {[%clk 0:00:52.9]} 22. exd6 {[%clk 0:00:31.5]}
22... cxb4 {[%clk 0:00:41.5]} 23. Nc4 {[%clk 0:00:31.2]} 23... bxc3 {[%clk
0:00:35.4]} 24. Bxg6 {[%clk 0:00:30.6]} 24... hxg6 {[%clk 0:00:28.1]} 25. Qxf4
{[%clk 0:00:30.9]} 25... Qd7 {[%clk 0:00:16.7]} 26. d5 {[%clk 0:00:31.1]} 26...
Rfc8 {[%clk 0:00:13.4]} 27. Ra6 {[%clk 0:00:30]} 27... Bc5 {[%clk 0:00:09.9]}
28. Ne5 {[%clk 0:00:28.7]} 28... Qb7 {[%clk 0:00:06.3]} 29. Rc6 {[%clk
0:00:28.5]} 29... f6 {[%clk 0:00:03]} 30. Nxg6 {[%clk 0:00:19.7]} 30... Rxc6
{[%clk 0:00:02.6]} 31. Ne7+ {[%clk 0:00:18.8]} 31... Kf7 {[%clk 0:00:02.9]} 32.
dxc6 {[%clk 0:00:19.2]} 32... Qb6 {[%clk 0:00:01.2]} 33. Qc4+ {[%clk 0:00:18.5]}
33... Kf8 {[%clk 0:00:01.6]} 34. Qg8# {[%clk 0:00:18.2]} 1-0

[Event "*** Titled Tuesday Blitz"]
[Site "Chess.com"]
[Date "2021.03.30"]
[Round "2"]
[White "AsaHoffmann"]
[Black "RamyresCoelho"]
[Result "0-1"]
[WhiteElo "2395"]
[BlackElo "2172"]
[TimeControl "180+1"]
[EndTime "10:17:22 PDT"]
[Termination "RamyresCoelho won by resignation"]

1. d4 {[%clk 0:02:56.2]} 1... Nf6 {[%clk 0:02:59.2]} 2. Bg5 {[%clk 0:02:55]}
2... Ne4 {[%clk 0:02:59]} 3. Bf4 {[%clk 0:02:54.5]} 3... c5 {[%clk 0:02:56.9]}
4. f3 {[%clk 0:02:54.2]} 4... Qa5+ {[%clk 0:02:55.7]} 5. c3 {[%clk 0:02:52.5]}
5... Nf6 {[%clk 0:02:53.1]} 6. d5 {[%clk 0:02:52.3]} 6... Qb6 {[%clk 0:02:50.8]}
7. e4 {[%clk 0:02:51.6]} 7... Qxb2 {[%clk 0:02:48.3]} 8. Nd2 {[%clk 0:02:50.9]}
8... Qxc3 {[%clk 0:02:46.1]} 9. Bc7 {[%clk 0:02:50.2]} 9... Qe3+ {[%clk
0:02:40.9]} 10. Ne2 {[%clk 0:02:48.8]} 10... Na6 {[%clk 0:02:37.4]} 11. Bf4
{[%clk 0:02:44.8]} 11... Qa3 {[%clk 0:02:16.2]} 12. Nc1 {[%clk 0:02:16.8]} 12...
d6 {[%clk 0:02:02]} 13. Nc4 {[%clk 0:02:08.8]} 13... Qc3+ {[%clk 0:01:47.3]} 14.
Bd2 {[%clk 0:02:05.6]} 14... Qxa1 {[%clk 0:01:46.6]} 15. Be2 {[%clk 0:01:50.2]}
15... b5 {[%clk 0:01:30.1]} 16. Na5 {[%clk 0:01:46.3]} 16... Bd7 {[%clk
0:01:21]} 17. Qc2 {[%clk 0:01:44.4]} 17... Qe5 {[%clk 0:01:18.6]} 18. O-O {[%clk
0:01:40]} 18... g6 {[%clk 0:01:15.3]} 19. Nc6 {[%clk 0:01:39.4]} 19... Bxc6
{[%clk 0:01:14.7]} 20. dxc6 {[%clk 0:01:39.1]} 20... Bg7 {[%clk 0:01:14.4]} 21.
Bxb5 {[%clk 0:01:38.1]} 21... Nc7 {[%clk 0:01:14.7]} 22. Bc4 {[%clk 0:01:27.3]}
22... O-O {[%clk 0:01:14.3]} 23. Bc3 {[%clk 0:01:22.7]} 23... Qh5 {[%clk
0:01:10.4]} 24. Ne2 {[%clk 0:01:21.8]} 24... e5 {[%clk 0:01:03.5]} 25. Ng3
{[%clk 0:01:18.7]} 25... Qh4 {[%clk 0:01:02.5]} 26. Rd1 {[%clk 0:01:15.4]} 26...
Nh5 {[%clk 0:00:58.2]} 27. Be1 {[%clk 0:01:14.3]} 27... Nxg3 {[%clk 0:00:57.7]}
28. Bxg3 {[%clk 0:01:13.7]} 28... Qe7 {[%clk 0:00:58]} 29. Qf2 {[%clk
0:01:01.2]} 29... Rfd8 {[%clk 0:00:56.5]} 30. Bh4 {[%clk 0:01:00.7]} 30... g5
{[%clk 0:00:55.8]} 31. Bg3 {[%clk 0:00:59.9]} 31... Kh8 {[%clk 0:00:55.2]} 32.
h4 {[%clk 0:00:59.7]} 32... f6 {[%clk 0:00:54.2]} 33. hxg5 {[%clk 0:00:55.7]}
33... fxg5 {[%clk 0:00:55.1]} 34. Qd2 {[%clk 0:00:55.6]} 34... h6 {[%clk
0:00:51.3]} 35. Bf2 {[%clk 0:00:54.8]} 35... Ne6 {[%clk 0:00:50.9]} 36. Qa5
{[%clk 0:00:53.5]} 36... Nd4 {[%clk 0:00:46.2]} 37. Bxd4 {[%clk 0:00:52.6]}
37... exd4 {[%clk 0:00:44.2]} 38. Bd5 {[%clk 0:00:52.5]} 38... Rac8 {[%clk
0:00:42.1]} 39. Rb1 {[%clk 0:00:50.4]} 39... Qc7 {[%clk 0:00:37.7]} 40. Qa6
{[%clk 0:00:49.5]} 40... Rb8 {[%clk 0:00:35.5]} 41. Rb7 {[%clk 0:00:48.7]} 41...
Rxb7 {[%clk 0:00:35.3]} 42. cxb7 {[%clk 0:00:48.6]} 42... Rb8 {[%clk 0:00:32.8]}
43. a4 {[%clk 0:00:47.6]} 43... Qb6 {[%clk 0:00:32.3]} 44. Qc4 {[%clk
0:00:46.4]} 44... d3 {[%clk 0:00:29.9]} 45. Kh2 {[%clk 0:00:44.7]} 45... d2
{[%clk 0:00:28.9]} 46. Qd3 {[%clk 0:00:44.3]} 46... Qb4 {[%clk 0:00:27]} 47. Kh3
{[%clk 0:00:38.6]} 47... Qd4 {[%clk 0:00:26.7]} 48. Qxd4 {[%clk 0:00:35.5]}
48... Bxd4 {[%clk 0:00:25.9]} 49. Bb3 {[%clk 0:00:34.6]} 49... Rxb7 {[%clk
0:00:26.1]} 50. Bd1 {[%clk 0:00:34.2]} 50... Rb1 {[%clk 0:00:26.2]} 0-1